{"text_format":"1","workbook":"xlsx","n_sheets":3,"sheets":["Relació de despeses","Relació d'ingressos ","despeses i ingressos"],"not_rendered":{"charts":0,"images":2,"macros":1,"external_links":0,"defined_names":8,"comments":3,"pivot_tables":0},"unopened":[],"bounds":{"document_bytes":16777216,"sheet_cells":100000,"rows_first":2000,"rows_last":500,"rows_between":2000,"halvings":0,"cell_chars":16384,"cell_head_chars":4096},"cells_cut":0,"cells_raw":0,"read":"whole","date_system":"1900"}

{"sheet":"Relació de despeses","index":0,"n_rows":74,"n_cols":10,"rows_kept":74,"cut":false,"hidden":false,"merged":[[40,3,40,6],[40,9,40,10],[41,0,41,5],[41,9,41,10],[69,0,69,12],[43,0,43,10],[53,0,53,10],[55,0,55,10],[56,0,56,10],[57,0,57,10],[4,7,4,8],[61,0,61,11],[62,0,62,11],[63,0,63,12],[64,0,64,12],[49,1,49,2],[34,9,34,10],[33,0,33,10],[59,0,59,12],[60,0,60,12],[39,9,39,10],[39,0,39,6],[38,9,38,10],[36,9,36,10],[35,9,35,10],[40,0,40,2],[3,0,3,1],[7,1,8,1],[7,0,8,0],[6,0,6,4],[0,0,0,10],[4,0,4,1],[2,2,2,3],[3,2,3,3],[4,2,4,3],[2,0,2,1],[2,4,2,6],[3,4,3,6],[4,4,4,6],[7,2,8,2],[2,7,2,8],[3,7,3,8],[18,0,18,10],[19,9,19,10],[7,3,7,4],[27,9,27,10],[28,9,28,10],[8,9,8,10],[13,9,13,10],[7,9,7,10],[10,0,10,10],[16,9,16,10],[17,9,17,10],[9,0,9,8],[17,0,17,6],[11,9,11,10],[12,9,12,10],[31,9,31,10],[32,0,32,6],[32,9,32,10],[20,9,20,10],[21,9,21,10],[23,9,23,10],[24,0,24,6],[24,9,24,10],[25,0,25,10],[26,9,26,10],[73,0,73,12],[65,0,66,12],[44,0,45,10],[67,0,67,12],[68,0,68,12],[58,0,58,10],[70,0,70,12],[71,0,71,12],[72,0,72,12]]}
["Relació classificada de totes les despeses realitzades per a l'execució de l'activitat  subvencionada"]
[]
["Persona física/jurídica beneficiària:         ",null,null,null,"Import total del projecte:",null,null,null,null,"euros"]
["Codi de subvenció:",null,null,null,"Import de la subvenció atorgada:",null,null,null,null,"euros"]
["Nom del projecte subvencionat:",null,null,null,"Període d'execució del projecte subvencionat:",null,null,null,null,"a"]
[]
["Despeses del projecte/activitat/servei subvencionat (*)"]
["Núm. d'ordre (0)","Número de document: justificants despesa personal (1), factura o rebut/tiquet(2)","Concepte de la factura / \ndocument probatori equivalent","Emissor/a de la factura",null,"Data d'emissió","Import total de la factura","Import imputable (dedicat) al projecte (3)","Import imputable a la subvenció municipal (4)","Observacions"]
[null,null,null,"NIF","Nom","dd/mm/aaaa","euros","euros","euros"]
["DESPESES DIRECTES (Aquelles que s'identifiquen directament amb el projecte)"]
["D.1  Nòmines i seguretat social IRPF (règim general o règim d’autònoms) del personal propi  vinculat al projecte "]
[]
[]
[]
[]
[]
[]
["Subtotal D.1",null,null,null,null,null,null,{"$f":"SUM(H12:H17)","v":0},{"$f":"SUM(I12:I17)","v":0}]
["D.2 Rendiments anuals nets de l’empresari/a individual (veure 13.2 bases)"]
[]
[]
[]
[]
[]
["Subtotal D.2",null,null,null,null,null,null,{"$f":"SUM(H20:H24)","v":0},{"$f":"SUM(I20:I24)","v":0}]
["D.3  Treballs realitzats per professionals i empreses externes directament vinculades al projecte"]
[]
[]
[]
[]
[]
[]
["Subtotal D.3",null,null,null,null,null,null,{"$f":"SUM(H27:H32)","v":0},{"$f":"SUM(I27:I32)","v":0}]
["D.4 Despeses de llicències i taxes relacionades amb l'inici de l'activitat"]
[]
[]
[]
[]
[]
["Subtotal D.4",null,null,null,null,null,null,{"$f":"SUM(H35:H39)","v":0},{"$f":"SUM(I35:I39)","v":0}]
["TOTAL DESPESES DIRECTES ",null,null,"TOTAL DESPESES DIRECTES",null,null,null,{"$f":"+H18+H40+H25+H33","v":0},{"$f":"+I18+I40+I25+I33","v":0}]
["TOTAL DESPESES",null,null,null,null,null,"TOTAL",{"$f":"+H41","v":0},{"$f":"+I41","v":0}]
[]
["El Sr./Sra. (indicar el nom i cognoms de la persona representant que signa la justificació)  amb DNI/NIE (indicar el núm. DNI) en qualitat de persona física beneficiària o representant legal de la persona jurídica beneficiària (indicar nom i cognoms) amb NIF (indicar núm DNI)."]
["CERTIFICA que les despeses imputades al projecte/activitat/servei subvencionat han estat efectivament efectuades; que custodiarà la documentació suport que ho acredita; que  aquesta documentació es troba a disposició de l'Ajuntament de Barcelona o dels altres ens municipals en els arxius d'aquesta Entitat, durant un període mínim de 4 anys a comptar des de la data de presentació de la present justificació."]
[]
[]
[]
[]
[null,"Població i data: ",null,null,"Signatura i segell (en cas de registre físic)"]
[]
[]
["Notes:"]
["(*) S'han de relacionar totes les despeses del projecte/activitat/servei subvencionat. En el cas que el nombre de files de cada concepte sigui insuficient podeu inserir línies dins del mateix concepte seleccionant una cel·la verda i fent clic sobre el botó d'inserir línia."]
["(0) El número d'ordre ha de ser correlatiu començant per D.1.1, D1.2, D.1.3, D2.4, etc."]
["(1) Respecte a les despeses de recursos humans, pot ser subvencionable el cost total salarial mensual, que correspon a la suma de la retribució bruta que apareix a la nòmina del treballador/a més la quota de l'empresa a la Seg. Social. Les despeses de personal es justifiquen amb la nòmina del treballador/a acompanyada dels corresponents TC1 i TC2 de la TGSS i el model 111 de l'IRPF."]
["(2) En el cas que el document justificatiu de la resta de despeses, no sigui una factura, sinó un altre document probatori equivalent, com un rebut o justificant (com per dietes o transport públic), indiqueu-lo en la columna \"observacions\""]
["(3) En el cas que un justificant inclogui conceptes que no tenen a veure amb el projecte/activitat/servei per al qual s'ha atorgat la subvenció, aquí només s'ha d'indicar la part que realment s'ha dedicat al projecte."]
["(4) En aquesta columna s'ha d'indicar l'import total o parcial de la factura  que s'imputa a la subvenció rebuda de l'Ajuntament de Barcelona. El total imputat, en aquesta columna, ha de ser igual  a l'import de la subvenció rebuda."]
["Modalitat Aa: Creació i transformació: Creació de noves cooperatives i transformació, d’altres formes jurídiques pre-existents, en cooperatives"]
["S'extableix com a obligació de la subvenció la constitució de la cooperativa, registrada en el registre corresponent i l’alta censal, abans de la finalització del projecte subvencionat"]
["1.  La quantia de la subvenció atorgada no superarà el 80% de la despesa total del projecte a subvencionar. "]
["2.  S’establirà com a obligació de la subvenció la constitució de la cooperativa o societat laboral, registrada en el registre corresponent i l’alta censal, abans de la finalització del projecte subvencionat. Als efectes de la justificació econòmica seran admissibles les despeses facturades a nom dels sol·licitant i les despeses facturades a nom de l’entitat d’economia social un cop constituïda (punt 6.3 de les bases)"]
["3.  Es limita amb un màxim del 20% l’import de la subvenció per a despeses de personal propi que participa de forma directa i degudament al projecte."]
["4.  Només amb caràcter excepcional, els/les empresaris/ies individuals que no tinguin persones treballadores en plantilla podran acreditar els seus treballs mitjançant una declaració responsable acompanyada de les declaracions IRPF (model 130) de l’exercici corrent. El preu/hora imputat al projecte subvencionat no podrà superar la quantitat resultant de dividir els rendiments anuals nets de l’empresari/a individual per 1800."]
["5. Els salaris percebuts per les persones contractades en el marc del projecte subvencionat no siguin inferiors a 1.088,56€ bruts mensuals (13.062,72€ bruts en còmput anual) en el cas de jornades  completes, o la part proporcional en el cas de jornades parcials (punt 7 de les bases 2019: Requisits dels projectes)"]
[]
["6. En cap cas es consideraran despeses subvencionables:"]
["- Els impostos indirectes quan siguin susceptibles de recuperació o compensació, ni els impostos sobre la renda."]
["- Les despeses d'inversió, incloses les adquisicions de béns mobles."]
["- Les despeses realitzades amb data anterior a l'inici del projecte i data posterior a la finalització del projecte."]
["- Altres despeses que s'indiquin a la convocatòria."]
["7. No són imputables en aquesta modalitat les despeses indirectes, detallades en l’apartat 13.3. de les bases reguladores"]
["8.  La no realització de l'activitat subvencionada o l'incompliment de les condicions que van ser considerades per a l'atorgament de la subvenció, així com la manca de justificació o la justificació incompleta o incorrecta de l'activitat subvencionada, pot comportar el reintegrament total o parcial de la subvenció per part del beneficiari (punt 19 de les bases reguladores)"]

{"sheet":"Relació d'ingressos ","index":1,"n_rows":79,"n_cols":10,"rows_kept":79,"cut":false,"hidden":false,"merged":[[74,1,74,3],[65,6,65,9],[60,6,60,9],[67,6,67,9],[61,6,61,9],[62,6,62,9],[63,6,63,9],[64,6,64,9],[67,0,67,3],[66,0,66,3],[70,0,70,9],[71,0,72,9],[66,6,66,9],[59,6,59,9],[57,0,57,3],[51,0,51,3],[54,6,54,9],[53,6,53,9],[57,6,57,9],[51,6,51,9],[50,6,50,9],[0,0,0,9],[9,0,9,9],[16,0,16,9],[7,6,8,9],[10,6,10,9],[7,0,8,0],[11,6,11,9],[14,6,14,9],[3,2,3,3],[2,2,2,3],[6,0,6,3],[4,2,4,3],[7,2,7,3],[7,1,8,1],[15,0,15,3],[45,0,45,3],[39,0,39,3],[33,0,33,3],[15,6,15,9],[21,6,21,9],[29,6,29,9],[39,6,39,9],[38,6,38,9],[33,6,33,9],[32,6,32,9],[27,0,27,3],[21,0,21,3],[37,6,37,9],[35,6,35,9],[25,6,25,9],[30,6,30,9],[49,6,49,9],[45,6,45,9],[44,6,44,9],[43,6,43,9],[31,6,31,9],[27,6,27,9],[26,6,26,9],[42,6,42,9],[41,6,41,9],[48,6,48,9],[47,6,47,9],[24,6,24,9],[20,6,20,9],[19,6,19,9],[18,6,18,9],[17,6,17,9],[23,6,23,9]]}
["Detall de tots els ingressos obtinguts i aportacions del propi beneficiari per a l'execució de l'activitat subvencionada"]
[]
[null,"Nom de la persona física/jurídica beneficiària:        ",{"$f":"IF('Relació de despeses'!C3:D3<>\"\",'Relació de despeses'!C3:D3,\"\")","v":""},null,"Import total del projecte :",null,null,{"$f":"IF(+'Relació de despeses'!H3=\"\",\"\",+'Relació de despeses'!H3)","v":""},"euros"]
[null,"Codi de subvenció",{"$f":"IF('Relació de despeses'!C4:D4<>\"\",'Relació de despeses'!C4:D4,\"\")","v":""},null,"Import de la subvenció atorgada:",null,null,{"$f":"IF(+'Relació de despeses'!H4=\"\",\"\",+'Relació de despeses'!H4)","v":""},"euros"]
[null,"Nom del projecte subvencionat",{"$f":"IF('Relació de despeses'!C5:D5<>\"\",'Relació de despeses'!C5:D5,\"\")","v":""},null,"Període d'execució del projecte subvencionat:",null,null,{"$f":"IF(+'Relació de despeses'!H5=\"\",\"\",+'Relació de despeses'!H5)","v":""},"a",{"$f":"IF(+'Relació de despeses'!K5=\"\",\"\",+'Relació de despeses'!K5)","v":""}]
[]
["Ingressos del projecte/activitat/servei subvencionat"]
["núm. d'ordre (0)","Concepte de l'ingrés","Emissor/a de l'ingrés",null,"Data de cobrament\n(dd/mm/aaaa)","Import","Observacions"]
[null,null,"NIF","Nom","(1)","euros"]
["A. Subvenció municipal "]
[]
[]
[]
[]
[]
[null,null,null,null,"Subtotal A",{"$f":"SUM(F11:F15)","v":0}]
["B. Subvencions d'altres administracions"]
[]
[]
[]
[]
[null,null,null,null,"Subtotal B",{"$f":"SUM(F18:F21)","v":0}]
["C. Subvencions d'ens privats"]
[]
[]
[]
[]
[null,null,null,null,"Subtotal C",{"$f":"SUM(F24:F27)","v":0}]
["D. Recursos propis de l'entitat aplicats al projecte"]
[]
[]
[]
[]
[null,null,null,null,"Subtotal D",{"$f":"SUM(F30:F33)","v":0}]
["E. Taquillatge"]
[]
[]
[]
[]
[null,null,null,null,"Subtotal E",{"$f":"SUM(F36:F39)","v":0}]
["F. Quotes d'inscripció"]
[]
[]
[]
[]
[null,null,null,null,"Subtotal F",{"$f":"SUM(F42:F45)","v":0}]
["G. Venda de Productes"]
[]
[]
[]
[]
[null,null,null,null,"Subtotal G",{"$f":"SUM(F48:F51)","v":0}]
["H. Publicitat i/o Esponsorització"]
[]
[]
[]
[]
[null,null,null,null,"Subtotal H",{"$f":"SUM(F54:F57)","v":0}]
["I. Altres ingressos"]
[]
[]
[]
[]
[]
[]
[]
[null,null,null,null,"Subtotal I",{"$f":"SUM(F60:F66)","v":0}]
["Total INGRESSOS",null,null,null,"TOTAL",{"$f":"+F16+F22+F28+F34+F40+F46+F52+F58+F67","v":0}]
[]
[]
[{"$f":"'Relació de despeses'!A44:K44","v":"El Sr./Sra. (indicar el nom i cognoms de la persona representant que signa la justificació)  amb DNI/NIE (indicar el núm. DNI) en qualitat de persona física beneficiària o representant legal de la persona jurídica beneficiària (indicar nom i cognoms) amb NIF (indicar núm DNI)."}]
["CERTIFICA que els ingressos imputats al projecte/activitat/servei subvencionat han estat efectivament ingressats; que custodiarà la documentació suport que ho acredita; que  aquesta documentació es troba a disposició de l'Ajuntament de Barcelona o dels altres ens municipals en els arxius d'aquesta Entitat, durant un període mínim de 4 anys a comptar des de la data de presentació de la present justificació."]
[]
[]
[null,"Població i data: ",null,null,null,"Signatura i segell (en cas de registre físic)"]
[]
[null,"Nota:"]
[null,"(0) El número d'ordre ha de ser correlatiu començant pel número A1, A2, A3, B4, etc."]
[null,"(1) En cas que l'ingrés estigui pendent cobrament, indicar \"P. Cobrament\" "]

{"sheet":"despeses i ingressos","index":2,"n_rows":71,"n_cols":11,"rows_kept":71,"cut":false,"hidden":false,"merged":[[33,1,33,2],[4,5,4,6],[5,0,5,1],[5,2,5,3],[5,5,5,6],[9,6,9,7],[6,0,6,1],[6,2,6,3],[9,0,9,1],[4,0,4,1],[4,2,4,3],[26,7,26,10],[10,8,11,8],[10,9,11,9],[10,2,11,2],[10,3,11,3],[10,6,11,7],[22,1,22,2],[10,0,11,1],[22,3,22,4],[30,0,31,9],[21,1,21,2],[29,0,29,9],[41,0,41,10],[42,0,42,10],[36,0,36,10],[37,0,37,10],[38,0,38,10],[39,0,39,10],[40,0,40,10]]}
[]
[]
["Estat de les despeses realitzades i dels ingressos obtinguts per a l'execució de l'activitat subvencionada (*)"]
[]
["Nom de la persona física/jurídica beneficiària:         ",null,{"$f":"IF('Relació de despeses'!C3:D3<>\"\",'Relació de despeses'!C3:D3,\"\")","v":""},null,null,"Import total del projecte:",null,{"$f":"'Relació d''ingressos '!H3","v":""},"euros"]
["Codi de subvenció:",null,{"$f":"IF('Relació de despeses'!C4:D4<>\"\",'Relació de despeses'!C4:D4,\"\")","v":""},null,null,"Import de la subvenció atorgada:",null,{"$f":"'Relació d''ingressos '!H4","v":""},"euros"]
["Nom del projecte subvencionat:",null,{"$f":"IF('Relació de despeses'!C5:D5<>\"\",'Relació de despeses'!C5:D5,\"\")","v":""},null,null,"Període d'execució del projecte subvencionat:",null,null,{"$f":"'Relació d''ingressos '!H5","v":""},"a",{"$f":"'Relació d''ingressos '!J5","v":""}]
[]
["SUBVENCIONS PER A LA PROMOCIÓ I REFORÇ DE L'ECONOMIA SOCIAL I SOLIDÀRIA 2020"]
["DESPESES PREVISTES",null,"import en euros",null,null,null,"INGRESSOS PREVISTOS",null,"import en euros"]
["Despeses directes \n(aquelles que s'identifiquen directament amb el projecte)",null,"Previsió inicial o reformulada ja aprovada (1)","Despeses realitzades (2)","Diferència\n",null,"Ingressos previstos",null,"Previsió inicial (1)","Ingressos obtinguts (3)"]
[null,null,null,null,"(2-1)"]
["Aa","D.1  Nòmines i seguretat social IRPF (règim general o règim d’autònoms) del personal propi  vinculat al projecte ",null,{"$f":"'Relació de despeses'!H18","v":0},{"$f":"+C13-D13","v":0},null,"A.","Subvenció municipal (import sol·licitat a la instància/atorgat)",null,{"$f":"'Relació d''ingressos '!F16","v":0}]
[null,"D.2 Rendiments anuals nets de l’empresari/a individual (veure 13.2 bases)",null,{"$f":"'Relació de despeses'!H25","v":0},{"$f":"+C14-D14","v":0},null,"B.","Subvencions d'altres administracions",null,{"$f":"'Relació d''ingressos '!F22","v":0}]
[null,"D.3  Treballs realitzats per professionals i empreses externes directament vinculades al projecte",null,{"$f":"'Relació de despeses'!H33","v":0},{"$f":"+C15-D15","v":0},null,"C.","Subvencions d'ens privats",null,{"$f":"'Relació d''ingressos '!F28","v":0}]
[null,"D.4 Despeses de llicències i taxes relacionades amb l'inici de l'activitat",null,{"$f":"'Relació de despeses'!H40","v":0},{"$f":"+C16-D16","v":0},null,"D.","Recursos propis de l'entitat aplicats al projecte",null,{"$f":"'Relació d''ingressos '!F34","v":0}]
[null,"Total Despeses Directes   ",{"$f":"SUM(C13:C16)","v":0},{"$f":"SUM(D13:D16)","v":0},{"$f":"SUM(E13:E16)","v":0},null,"E.","Taquillatge",null,{"$f":"'Relació d''ingressos '!F40","v":0}]
[null,"Total Despeses ",{"$f":"+C17","v":0},{"$f":"+D17","v":0},{"$f":"C18-D18","v":0},null,"F.","Quotes d'inscripció",null,{"$f":"'Relació d''ingressos '!F46","v":0}]
[null,null,null,null,"import en euros",null,"G.","Venda de Productes",null,{"$f":"'Relació d''ingressos '!F52","v":0}]
[null,null,null,null,null,null,"H","Publicitat i/o Esponsorització",null,{"$f":"'Relació d''ingressos '!F58","v":0}]
[null,null,null,null,null,null,"I.","Altres ingressos",null,{"$f":"'Relació d''ingressos '!F67","v":0}]
[null,"Ingressos menys despeses ",null,{"$f":"+I22-C18","v":0},{"$f":"+J22-D18","v":0},null,null,"Total Ingressos",{"$f":"SUM(I13:I21)","v":0},{"$f":"SUM(J13:J21)","v":0}]
[null,"Desviació de Despeses (4)",null,"Desviació d'ingressos (4)"]
[null,"Import"," % ","Import","%"]
[null,{"$f":"D18-C18","v":0},{"$f":"D18/C18","v":{"$error":"#DIV/0!"}},{"$f":"J22-I22","v":0},{"$f":"J22/I22","v":{"$error":"#DIV/0!"}}]
[null,null,null,"% subvencionat inicialment o després de reformulació (5)",{"$f":"I13/I22","v":{"$error":"#DIV/0!"}}]
[null,null,null,"% subvencionat després de justificació (6)",{"$f":"+J13/J22","v":{"$error":"#DIV/0!"}}]
[]
[]
[{"$f":"'Relació de despeses'!A44:K44","v":"El Sr./Sra. (indicar el nom i cognoms de la persona representant que signa la justificació)  amb DNI/NIE (indicar el núm. DNI) en qualitat de persona física beneficiària o representant legal de la persona jurídica beneficiària (indicar nom i cognoms) amb NIF (indicar núm DNI)."}]
["CERTIFICA que els ingressos imputats al projecte/activitat/servei subvencionat han estat efectivament ingressats; que custodiarà la documentació suport que ho acredita; que  aquesta documentació es troba a disposició de l'Ajuntament de Barcelona o dels altres ens municipals en els arxius d'aquesta Entitat, durant un període mínim de 4 anys a comptar des de la data de presentació de la present justificació."]
[]
[]
[null,"Població i data: ",null,null,"Signatura i segell (en cas de registre físic)"]
[]
["Notes:"]
["(*) Les columnes ombrejades en color  s'aniran emplenant automàticament a partir de les dades introduïdes en els documents de despeses -detall i ingressos-detall. Per tant, no imprimiu aquest full fins haver emplenat els altres."]
["(1) Previsió inicial o reformulació ja aprovada= S'han d'indicar la previsió inicial de despeses i d'ingressos segons allò que es va indicar al projecte original en el \"pla de viabilitat econòmica del projecte - pressupost general\" . En cas que ja s'hagi aprovat una reformulació, s'han d'indicar les quantitats reformulades. "]
["(2) Despeses reals = Cost real total del projecte subvencionat. Automàticament s'introduiran els subtotals de les despeses relacionades al full Despeses-detall."]
["(3) Ingresos reals = Total d'ingressos obtinguts per a la realització del projecte subvencionat. Automàticament s'introduiran els subtotals dels ingressos relacionats al full Ingressos-detall"]
["(4) Desviació: En el cas de les despeses, la desviació és la diferència entre despeses reals i la previsió inicial de despeses; i en el cas d'ingressos, la diferència entre els ingressos reals i la previsió inicial d'ingressos. "]
["(5) % finançament municipal = percentatge que suposen les subvencions municipals (A) respecte del  total d'ingressos del projecte subvencionat."]
["(6) El % de la desviació final de despeses es calcula dividint l'import resultant de despeses reals - despeses previstes, entre el total de despeses previstes i de la mateixa manera els ingressos. En cas d'existir una desviació sempre s'ha de motivar."]
[]
[]
[]
[]
[]
[]
[]
[]
[]
[]
[]
[]
[]
[]
[]
[]
[]
[]
[]
[]
[]
[]
[]
[]
[]
[]
[]
[null,null,0]